[Event "1st Bangalore GM-Open-A 2024"]
[Site "Bangalore"]
[Date "2024.01.21"]
[Round "5.10"]
[White "Aradhya, Garg"]
[Black "Srihari L R"]
[Result "1/2-1/2"]
[ECO "A85"]
[WhiteElo "2390"]
[BlackElo "2469"]
[Annotator "RC"]
[PlyCount "77"]
[EventDate "2024.01.20"]
[EventType "swiss"]
[EventCountry "IND"]
[SourceTitle "playchess.com"]
[Source "ChessBase"]
[SourceQuality "1"]
[TimeControl "5400+30"]

1. d4 {[%emt 0:00:02]} f5 {[%emt 0:02:22]} 2. c4 {[%emt 0:01:45]} Nf6 {[%emt 0:00:13]} 3. Nc3 {[%emt 0:00:38]} e6 {[%emt 0:00:13]} 4. e4 {[%emt 0:10:55]} fxe4 {[%emt 0:06:02]} 5. g4 {[%emt 0:00:08]} Bb4 {[%emt 0:15:22]} 6. g5 {[%emt 0:00:39]} Ng8 {[%emt 0:00:09]} 7. Bg2 {[%emt 0:03:31]} d5 {[%emt 0:00:29]} 8. f3 {[%emt 0:03:37]} exf3 {[%emt 0:13:38]} 9. Nxf3 {[%emt 0:08:18]} Ne7 {[%emt 0:00:18]} 10. O-O {[%emt 0:00:12]} O-O {[%emt 0:00:08]} 11. c5 {[%emt 0:01:09]} Bxc3 {[%emt 0:16:05]} 12. bxc3 {[%emt 0:06:11]} Nbc6 {[%emt 0:00:05]} 13. Re1 {[%emt 0:05:37]} Ng6 {[%emt 0:00:32]} 14. a4 {[%emt 0:10:59]} Bd7 {[%emt 0:06:06]} 15. Ra2 {[%emt 0:03:13]} Nf4 {[%emt 0:03:44]} 16. Bxf4 {[%emt 0:00:36]} Rxf4 {[%emt 0:00:06]} 17. Rae2 {[%emt 0:00:05]} Qf8 {[%emt 0:06:59]} 18. Ne5 {[%emt 0:04:02]} Nxe5 19. Rxe5 {[%emt 0:00:02]} Qf7 {[%emt 0:15:11]} 20. c4 {[%emt 0:01:43]} c6 {[%emt 0:00:41]} 21. cxd5 {[%emt 0:03:04]} cxd5 {[%emt 0:02:08]} 22. Qb3 {[%emt 0:00:09]} Rxd4 {[%emt 0:03:34]} 23. Qxb7 {[%emt 0:01:25]} Rf8 {[%emt 0:00:01]} 24. Rf1 {[%emt 0:07:18]} Rf4 {[%emt 0:00:13]} 25. Ree1 {[%emt 0:00:05]} Bc8 {[%emt 0:02:06]} 26. Qb8 {[%emt 0:01:25]} Rf2 {[%emt 0:01:57]} 27. c6 {[%emt 0:02:04]} Qf4 {[%emt 0:03:29]} 28. c7 {[%emt 0:04:50]} Qd2 {[%emt 0:01:34]} 29. Kh1 {[%emt 0:01:25]} Ba6 {[%emt 0:00:49]} 30. Rd1 {[%emt 0:02:54]} Qe2 {[%emt 0:00:43]} 31. Rxf2 {[%emt 0:00:56]} Qxf2 {[%emt 0:00:23]} 32. Qd8 {[%emt 0:01:39]} Qb6 {[%emt 0:00:36]} 33. Qe7 {[%emt 0:00:44]} Rf7 {[%emt 0:00:28]} 34. Qd8+ {[%emt 0:01:45]} Rf8 {[%emt 0:00:01]} 35. Rxd5 {[%emt 0:02:40]} Bb7 {[%emt 0:00:36]} 36. Rd1 {[%emt 0:02:01]} Bxg2+ {[%emt 0:00:18]} 37. Kxg2 {[%emt 0:00:02]} Qf2+ {[%emt 0:00:09]} 38. Kh1 {[%emt 0:00:05]} Qf3+ {[%emt 0:00:03]} 39. Kg1 {[%emt 0:00:03]} 1/2-1/2

[Event "1st Bangalore GM-Open-A 2024"]
[Site "Bangalore"]
[Date "2024.01.21"]
[Round "5.11"]
[White "Muthaiah AL"]
[Black "Dzhumaev, Marat"]
[Result "1/2-1/2"]
[ECO "B06"]
[WhiteElo "2464"]
[BlackElo "2362"]
[Annotator "RC"]
[PlyCount "165"]
[EventDate "2024.01.20"]
[EventType "swiss"]
[EventCountry "IND"]
[SourceTitle "playchess.com"]
[Source "ChessBase"]
[SourceQuality "1"]
[TimeControl "5400+30"]

1. d4 {[%emt 0:00:20]} g6 {[%emt 0:00:50]} 2. e4 {[%emt 0:03:45]} Bg7 {[%emt 0:00:13]} 3. Nc3 {[%emt 0:00:09]} d6 {[%emt 0:00:11]} 4. Be3 {[%emt 0:00:23]} a6 {[%emt 0:01:10]} 5. a4 {[%emt 0:11:38]} b6 {[%emt 0:01:17]} 6. Qd2 {[%emt 0:07:10]} Bb7 {[%emt 0:00:33]} 7. f3 {[%emt 0:00:17]} Nf6 {[%emt 0:12:30]} 8. Bh6 {[%emt 0:13:13]} Bxh6 {[%emt 0:02:27]} 9. Qxh6 {[%emt 0:00:07]} Nc6 {[%emt 0:00:36]} 10. O-O-O {[%emt 0:06:42]} e5 {[%emt 0:00:54]} 11. dxe5 {[%emt 0:08:20]} Nxe5 {[%emt 0:00:13]} 12. Nh3 {[%emt 0:01:16]} Qe7 {[%emt 0:01:02]} 13. Nf4 {[%emt 0:03:17]} c6 {[%emt 0:04:31]} 14. h4 {[%emt 0:03:47]} O-O-O {[%emt 0:13:00]} 15. Nd3 {[%emt 0:05:27]} b5 {[%emt 0:00:27]} 16. Qe3 {[%emt 0:01:39]} Kb8 {[%emt 0:04:11]} 17. Be2 {[%emt 0:05:17]} Rhe8 {[%emt 0:01:23]} 18. Kb1 {[%emt 0:05:32]} h5 {[%emt 0:04:49]} 19. axb5 {[%emt 0:06:55]} axb5 {[%emt 0:00:13]} 20. Nxe5 {[%emt 0:00:23]} dxe5 {[%emt 0:03:09]} 21. Na2 {[%emt 0:00:46]} Nd7 {[%emt 0:02:05]} 22. c4 {[%emt 0:06:57]} b4 {[%emt 0:15:19]} 23. c5 {[%emt 0:00:42]} Qxc5 {[%emt 0:09:11]} 24. Qb3 {[%emt 0:00:45]} Qf2 {[%emt 0:03:14]} 25. Nxb4 {[%emt 0:04:37]} Qxe2 {[%emt 0:00:12]} 26. Nxc6+ {[%emt 0:00:25]} Kc7 {[%emt 0:00:08]} 27. Nxd8 {[%emt 0:00:24]} Rxd8 {[%emt 0:00:17]} 28. Qxf7 {[%emt 0:01:58]} Bc6 {[%emt 0:02:57]} 29. Qxg6 {[%emt 0:00:50]} Ra8 {[%emt 0:05:12]} 30. Qd6+ {[%emt 0:01:00]} Kb7 {[%emt 0:00:05]} 31. Qd3 {[%emt 0:01:11]} Qf2 {[%emt 0:01:05]} 32. Qb3+ {[%emt 0:00:30]} Kc7 {[%emt 0:00:13]} 33. Rc1 {[%emt 0:00:28]} Nc5 {[%emt 0:08:59]} 34. Qc2 {[%emt 0:00:37]} Qxc2+ {[%emt 0:00:11]} 35. Kxc2 {[%emt 0:00:23]} Ne6 {[%emt 0:00:06]} 36. Rhd1 {[%emt 0:00:37]} Nd4+ {[%emt 0:00:19]} 37. Kd3 {[%emt 0:00:31]} Rg8 {[%emt 0:01:32]} 38. Rg1 {[%emt 0:00:36]} Rb8 {[%emt 0:00:20]} 39. Rb1 {[%emt 0:00:21]} Rb3+ {[%emt 0:00:24]} 40. Kd2 {[%emt 0:00:06]} Kd6 {[%emt 0:01:48]} 41. Rgc1 {[%emt 0:00:15]} Rb8 {[%emt 0:00:30]} 42. Ke3 {[%emt 0:00:16]} Ba4 {[%emt 0:01:01]} 43. Rc4 {[%emt 0:01:07]} Bb3 {[%emt 0:00:31]} 44. Rc3 {[%emt 0:00:29]} Rb4 {[%emt 0:02:27]} 45. Kd2 {[%emt 0:00:56]} Ba2 {[%emt 0:00:08]} 46. Rg1 {[%emt 0:00:31]} Rxb2+ {[%emt 0:00:04]} 47. Ke3 {[%emt 0:00:09]} Bb1 {[%emt 0:01:08]} 48. Re1 {[%emt 0:00:48]} Nc2+ {[%emt 0:00:40]} 49. Rxc2 {[%emt 0:00:11]} Bxc2 {[%emt 0:00:05]} 50. Ra1 {[%emt 0:00:47]} Rb3+ {[%emt 0:00:33]} 51. Kf2 {[%emt 0:00:17]} Bd3 {[%emt 0:00:06]} 52. Ra8 {[%emt 0:00:21]} Rb2+ {[%emt 0:00:19]} 53. Kg1 {[%emt 0:00:06]} Rb1+ {[%emt 0:00:24]} 54. Kf2 {[%emt 0:00:26]} Rb2+ {[%emt 0:01:09]} 55. Kg1 {[%emt 0:00:08]} Bc4 {[%emt 0:01:04]} 56. Rf8 {[%emt 0:01:34]} Be6 {[%emt 0:00:30]} 57. Rf6 {[%emt 0:00:24]} Ke7 {[%emt 0:00:13]} 58. Rg6 {[%emt 0:00:12]} Bf7 {[%emt 0:00:17]} 59. Ra6 {[%emt 0:00:09]} Rd2 {[%emt 0:00:43]} 60. Ra5 {[%emt 0:00:07]} Kf6 {[%emt 0:00:17]} 61. Ra6+ {[%emt 0:00:12]} Be6 {[%emt 0:00:17]} 62. Rb6 {[%emt 0:00:17]} Rd8 {[%emt 0:00:20]} 63. Ra6 {[%emt 0:00:17]} Rd7 {[%emt 0:00:40]} 64. Rb6 {[%emt 0:00:07]} Ra7 {[%emt 0:00:27]} 65. Kf2 {[%emt 0:00:09]} Re7 {[%emt 0:00:49]} 66. Ra6 {[%emt 0:00:28]} Kg7 {[%emt 0:00:09]} 67. Rb6 {[%emt 0:00:30]} Bf7 {[%emt 0:00:52]} 68. Ra6 {[%emt 0:00:10]} Re6 {[%emt 0:00:16]} 69. Ra5 {[%emt 0:01:12]} Kf6 {[%emt 0:00:08]} 70. Ra7 {[%emt 0:00:14]} Rb6 {[%emt 0:00:24]} 71. Kg1 {[%emt 0:00:23]} Ke6 {[%emt 0:00:17]} 72. Kf2 {[%emt 0:00:17]} Rb2+ {[%emt 0:00:44]} 73. Kg1 {[%emt 0:00:08]} Rd2 {[%emt 0:00:06]} 74. Ra6+ {[%emt 0:00:18]} Rd6 {[%emt 0:00:14]} 75. Ra7 {[%emt 0:00:12]} Rd7 {[%emt 0:00:20]} 76. Ra6+ {[%emt 0:00:06]} Ke7 {[%emt 0:00:10]} 77. Ra5 {[%emt 0:00:11]} Kd6 {[%emt 0:00:08]} 78. Ra6+ {[%emt 0:00:16]} Kc5 {[%emt 0:00:19]} 79. Rf6 {[%emt 0:00:18]} Kd4 {[%emt 0:00:16]} 80. Kf2 {[%emt 0:00:08]} Be8 {[%emt 0:02:40]} 81. Re6 {[%emt 0:00:41]} Bf7 {[%emt 0:00:20]} 82. Rf6 {[%emt 0:00:05]} Bc4 {[%emt 0:00:37]} 83. Rh6 {[%emt 0:01:05]} 1/2-1/2

[Event "1st Bangalore GM-Open-A 2024"]
[Site "Bangalore"]
[Date "2024.01.21"]
[Round "5.12"]
[White "Aswath, S."]
[Black "Stany, G.A."]
[Result "1/2-1/2"]
[ECO "C07"]
[WhiteElo "2369"]
[BlackElo "2459"]
[Annotator "RC"]
[PlyCount "101"]
[EventDate "2024.01.20"]
[EventType "swiss"]
[EventCountry "IND"]
[SourceTitle "playchess.com"]
[Source "ChessBase"]
[SourceQuality "1"]
[TimeControl "5400+30"]

1. e4 {[%emt 0:05:34]} e6 {[%emt 0:00:17]} 2. d4 {[%emt 0:00:28]} d5 {[%emt 0:00:06]} 3. Nd2 {[%emt 0:00:02]} c5 {[%emt 0:00:10]} 4. exd5 {[%emt 0:00:09]} Qxd5 {[%emt 0:00:07]} 5. Ngf3 {[%emt 0:00:06]} cxd4 {[%emt 0:00:18]} 6. Bc4 {[%emt 0:00:09]} Qd7 {[%emt 0:00:18]} 7. O-O {[%emt 0:00:13]} Nc6 {[%emt 0:00:06]} 8. Nb3 {[%emt 0:00:27]} a6 {[%emt 0:00:06]} 9. Nbxd4 {[%emt 0:00:24]} Nxd4 {[%emt 0:00:20]} 10. Nxd4 {[%emt 0:00:10]} Qc7 {[%emt 0:00:14]} 11. Bb3 {[%emt 0:01:30]} Nf6 {[%emt 0:04:55]} 12. Re1 {[%emt 0:01:11]} Bd6 {[%emt 0:03:11]} 13. Nf5 {[%emt 0:14:12]} Bxh2+ {[%emt 0:03:03]} 14. Kh1 {[%emt 0:00:16]} O-O {[%emt 0:38:09]} 15. Nxg7 {[%emt 0:03:57]} Kxg7 {[%emt 0:00:58]} 16. Qd4 {[%emt 0:00:37]} e5 {[%emt 0:06:55]} 17. Qh4 {[%emt 0:04:44]} Ng4 {[%emt 0:00:15]} 18. Bh6+ {[%emt 0:06:01]} Nxh6 {[%emt 0:00:06]} 19. Qg5+ {[%emt 0:00:06]} Kh8 {[%emt 0:00:04]} 20. Qxh6 {[%emt 0:00:39]} Qe7 {[%emt 0:01:17]} 21. Qxh2 {[%emt 0:11:26]} f6 {[%emt 0:03:58]} 22. f4 {[%emt 0:06:54]} e4 {[%emt 0:03:18]} 23. Qh4 {[%emt 0:05:37]} Bf5 {[%emt 0:09:46]} 24. Re2 {[%emt 0:04:14]} Rad8 {[%emt 0:04:31]} 25. Rae1 {[%emt 0:01:02]} Qd7 {[%emt 0:05:54]} 26. Re3 {[%emt 0:02:42]} Bg6 {[%emt 0:07:30]} 27. Rg3 {[%emt 0:01:04]} Qe8 {[%emt 0:03:03]} 28. Kh2 {[%emt 0:20:36]} f5 {[%emt 0:00:20]} 29. Ree3 {[%emt 0:00:16]} Rd6 {[%emt 0:01:16]} 30. Rc3 {[%emt 0:00:07]} Kg7 {[%emt 0:02:19]} 31. Rh3 {[%emt 0:00:31]} Rd7 {[%emt 0:02:29]} 32. Qh6+ {[%emt 0:02:37]} Kh8 {[%emt 0:00:04]} 33. Be6 {[%emt 0:01:30]} Rg7 {[%emt 0:00:05]} 34. Rc8 {[%emt 0:00:30]} Qe7 {[%emt 0:00:04]} 35. Rhc3 {[%emt 0:00:17]} Re8 {[%emt 0:01:38]} 36. Rxe8+ {[%emt 0:01:32]} Bxe8 {[%emt 0:00:04]} 37. Bxf5 {[%emt 0:01:30]} e3 {[%emt 0:00:05]} 38. Qe6 {[%emt 0:04:36]} Qh4+ {[%emt 0:00:51]} 39. Bh3 {[%emt 0:00:02]} Qxf4+ {[%emt 0:00:51]} 40. Kg1 {[%emt 0:00:46]} Qf2+ {[%emt 0:00:09]} 41. Kh2 {[%emt 0:00:19]} Qg3+ {[%emt 0:00:23]} 42. Kg1 {[%emt 0:00:22]} Qf2+ {[%emt 0:01:13]} 43. Kh2 {[%emt 0:00:02]} Bc6 {[%emt 0:00:30]} 44. Qe5 {[%emt 0:00:17]} Kg8 {[%emt 0:00:38]} 45. Rxc6 {[%emt 0:01:47]} Rxg2+ {[%emt 0:00:07]} 46. Bxg2 {[%emt 0:00:08]} Qh4+ {[%emt 0:00:04]} 47. Kg1 {[%emt 0:00:28]} Qe1+ {[%emt 0:00:10]} 48. Kh2 {[%emt 0:00:25]} Qh4+ {[%emt 0:00:06]} 49. Bh3 {[%emt 0:00:12]} Qf2+ {[%emt 0:00:05]} 50. Kh1 {[%emt 0:00:25]} Qe1+ {[%emt 0:00:11]} 51. Kh2 {[%emt 0:00:17]} 1/2-1/2

[Event "1st Bangalore GM-Open-A 2024"]
[Site "Bangalore"]
[Date "2024.01.21"]
[Round "5.13"]
[White "Shyaamnikhil P"]
[Black "Neelotpal, Das"]
[Result "1/2-1/2"]
[ECO "C45"]
[WhiteElo "2443"]
[BlackElo "2329"]
[Annotator "RC"]
[PlyCount "71"]
[EventDate "2024.01.20"]
[EventType "swiss"]
[EventCountry "IND"]
[SourceTitle "playchess.com"]
[Source "ChessBase"]
[SourceQuality "1"]
[TimeControl "5400+30"]

1. e4 {[%emt 0:00:05]} e5 {[%emt 0:00:09]} 2. Nf3 {[%emt 0:00:07]} Nc6 {[%emt 0:00:01]} 3. d4 {[%emt 0:00:07]} exd4 {[%emt 0:00:03]} 4. Nxd4 {[%emt 0:00:04]} Qf6 {[%emt 0:00:19]} 5. Nf3 {[%emt 0:00:42]} Bb4+ {[%emt 0:15:37]} 6. Nbd2 {[%emt 0:01:31]} Nge7 {[%emt 0:01:26]} 7. Be2 {[%emt 0:03:31]} Bxd2+ {[%emt 0:10:14]} 8. Qxd2 {[%emt 0:02:01]} O-O {[%emt 0:03:40]} 9. O-O {[%emt 0:05:48]} Rd8 {[%emt 0:06:30]} 10. Bc4 {[%emt 0:09:40]} h6 {[%emt 0:02:34]} 11. e5 {[%emt 0:11:22]} Nxe5 {[%emt 0:02:08]} 12. Nxe5 {[%emt 0:00:06]} Qxe5 {[%emt 0:00:02]} 13. Re1 {[%emt 0:00:06]} Qc5 {[%emt 0:02:47]} 14. Qf4 {[%emt 0:03:32]} d5 {[%emt 0:03:32]} 15. Bd3 {[%emt 0:03:13]} Ng6 {[%emt 0:10:42]} 16. Qg3 {[%emt 0:01:29]} Qd6 {[%emt 0:03:35]} 17. Qxd6 {[%emt 0:03:10]} cxd6 {[%emt 0:04:06]} 18. Bxg6 {[%emt 0:01:32]} fxg6 {[%emt 0:00:05]} 19. Be3 {[%emt 0:01:04]} Bd7 {[%emt 0:04:37]} 20. Rad1 {[%emt 0:04:06]} Bc6 {[%emt 0:00:21]} 21. Bd4 {[%emt 0:01:50]} Re8 {[%emt 0:02:43]} 22. f3 {[%emt 0:00:23]} g5 {[%emt 0:01:56]} 23. h3 {[%emt 0:01:41]} a6 {[%emt 0:01:39]} 24. Kf2 {[%emt 0:00:50]} Kf7 {[%emt 0:00:15]} 25. b3 {[%emt 0:02:21]} Rxe1 {[%emt 0:00:57]} 26. Kxe1 {[%emt 0:01:45]} h5 {[%emt 0:01:51]} 27. Kd2 {[%emt 0:04:25]} Re8 {[%emt 0:02:43]} 28. a4 {[%emt 0:04:43]} g4 {[%emt 0:02:33]} 29. hxg4 {[%emt 0:00:40]} hxg4 {[%emt 0:00:04]} 30. Re1 {[%emt 0:02:44]} Rxe1 {[%emt 0:00:20]} 31. Kxe1 {[%emt 0:00:05]} gxf3 {[%emt 0:00:27]} 32. gxf3 {[%emt 0:00:05]} Bd7 {[%emt 0:00:28]} 33. a5 {[%emt 0:00:15]} Bf5 {[%emt 0:00:07]} 34. c3 {[%emt 0:00:06]} Bc2 {[%emt 0:00:13]} 35. b4 {[%emt 0:00:04]} g6 {[%emt 0:00:06]} 36. Kf2 {[%emt 0:00:04]} 1/2-1/2

[Event "1st Bangalore GM-Open-A 2024"]
[Site "Bangalore"]
[Date "2024.01.21"]
[Round "5.14"]
[White "Jain Kashish Manoj"]
[Black "Sammed Jaykumar, Shete"]
[Result "1/2-1/2"]
[ECO "C77"]
[WhiteElo "2334"]
[BlackElo "2441"]
[Annotator "RC"]
[PlyCount "85"]
[EventDate "2024.01.20"]
[EventType "swiss"]
[EventCountry "IND"]
[SourceTitle "playchess.com"]
[Source "ChessBase"]
[SourceQuality "1"]
[TimeControl "5400+30"]

1. e4 {[%emt 0:00:07]} e5 {[%emt 0:01:40]} 2. Nf3 {[%emt 0:00:04]} Nc6 {[%emt 0:00:05]} 3. Bb5 {[%emt 0:00:07]} a6 {[%emt 0:00:04]} 4. Ba4 {[%emt 0:00:05]} Nf6 {[%emt 0:00:05]} 5. d3 {[%emt 0:00:04]} d6 {[%emt 0:00:28]} 6. c4 {[%emt 0:01:20]} g6 {[%emt 0:01:33]} 7. Nc3 {[%emt 0:00:17]} Bg7 {[%emt 0:00:05]} 8. h3 {[%emt 0:00:06]} O-O {[%emt 0:00:28]} 9. O-O {[%emt 0:00:10]} Nd7 {[%emt 0:00:49]} 10. Bg5 {[%emt 0:00:45]} f6 {[%emt 0:00:07]} 11. Be3 {[%emt 0:00:04]} f5 {[%emt 0:00:20]} 12. Bg5 {[%emt 0:00:08]} Bf6 {[%emt 0:00:06]} 13. Bxf6 {[%emt 0:11:19]} Nxf6 {[%emt 0:00:08]} 14. Re1 {[%emt 0:01:08]} fxe4 {[%emt 0:13:04]} 15. dxe4 {[%emt 0:02:24]} Qe7 {[%emt 0:00:08]} 16. c5 {[%emt 0:08:38]} Be6 {[%emt 0:02:08]} 17. Bb3 {[%emt 0:10:11]} Kh8 {[%emt 0:03:53]} 18. Bxe6 {[%emt 0:04:38]} Qxe6 {[%emt 0:00:04]} 19. Nd5 {[%emt 0:00:50]} Rac8 {[%emt 0:00:53]} 20. Qb3 {[%emt 0:06:28]} dxc5 {[%emt 0:03:13]} 21. Qxb7 {[%emt 0:05:17]} Nd4 {[%emt 0:05:22]} 22. Ng5 {[%emt 0:15:38]} Qd7 {[%emt 0:02:42]} 23. Qxa6 {[%emt 0:00:27]} Ra8 {[%emt 0:15:55]} 24. Nxf6 {[%emt 0:13:24]} Qe7 {[%emt 0:00:10]} 25. Qd3 {[%emt 0:01:05]} Rxf6 {[%emt 0:01:56]} 26. Qg3 {[%emt 0:13:54]} Nc2 {[%emt 0:01:41]} 27. Qc3 {[%emt 0:02:42]} Nxe1 {[%emt 0:03:08]} 28. Rxe1 {[%emt 0:01:11]} Rxa2 {[%emt 0:00:06]} 29. Nf3 {[%emt 0:00:17]} Rf8 {[%emt 0:00:13]} 30. Rd1 {[%emt 0:02:08]} Qf6 {[%emt 0:00:28]} 31. Qxc5 {[%emt 0:00:31]} Rxb2 {[%emt 0:00:42]} 32. Qxc7 {[%emt 0:00:02]} Rb3 {[%emt 0:02:43]} 33. Qc5 {[%emt 0:00:58]} Re8 {[%emt 0:02:30]} 34. Qc2 {[%emt 0:00:17]} Reb8 {[%emt 0:00:56]} 35. Rc1 {[%emt 0:00:44]} Qf4 {[%emt 0:01:23]} 36. Rd1 {[%emt 0:00:28]} R3b4 {[%emt 0:01:12]} 37. Re1 {[%emt 0:00:29]} Rb2 {[%emt 0:01:08]} 38. Qd3 {[%emt 0:00:32]} R8b3 {[%emt 0:01:33]} 39. Qd8+ {[%emt 0:00:28]} Kg7 {[%emt 0:00:05]} 40. Qe7+ {[%emt 0:00:29]} Kh6 {[%emt 0:00:08]} 41. Qxe5 {[%emt 0:00:19]} Qxe5 {[%emt 0:01:12]} 42. Nxe5 {[%emt 0:00:08]} Kg5 {[%emt 0:00:53]} 43. g3 {[%emt 0:00:58]} 1/2-1/2

[Event "1st Bangalore GM-Open-A 2024"]
[Site "Bangalore"]
[Date "2024.01.21"]
[Round "5.15"]
[White "Tahbaz, Arash"]
[Black "Goutham Krishna H"]
[Result "1-0"]
[ECO "B80"]
[WhiteElo "2425"]
[BlackElo "2288"]
[Annotator "RC"]
[PlyCount "57"]
[EventDate "2024.01.20"]
[EventType "swiss"]
[EventCountry "IND"]
[SourceTitle "playchess.com"]
[Source "ChessBase"]
[SourceQuality "1"]
[TimeControl "5400+30"]

1. e4 {[%emt 0:00:09]} c5 {[%emt 0:04:07]} 2. Nf3 {[%emt 0:00:50]} d6 {[%emt 0:00:14]} 3. d4 {[%emt 0:00:39]} cxd4 {[%emt 0:00:05]} 4. Nxd4 {[%emt 0:00:08]} Nf6 {[%emt 0:00:04]} 5. Nc3 {[%emt 0:00:08]} a6 {[%emt 0:00:15]} 6. f3 {[%emt 0:00:18]} e6 {[%emt 0:00:10]} 7. Be3 {[%emt 0:00:13]} b5 {[%emt 0:00:12]} 8. Qd2 {[%emt 0:00:30]} Nbd7 {[%emt 0:00:08]} 9. g4 {[%emt 0:00:14]} Nb6 {[%emt 0:00:26]} 10. a4 {[%emt 0:00:04]} Nc4 {[%emt 0:00:34]} 11. Bxc4 {[%emt 0:00:57]} bxc4 {[%emt 0:00:03]} 12. g5 {[%emt 0:05:49]} Nd7 {[%emt 0:00:02]} 13. h4 {[%emt 0:11:18]} Qa5 {[%emt 0:09:10]} 14. Qe2 {[%emt 0:05:24]} Qb4 {[%emt 0:08:10]} 15. O-O {[%emt 0:23:56]} Bb7 {[%emt 0:06:49]} 16. a5 {[%emt 0:07:16]} d5 {[%emt 0:30:06]} 17. exd5 {[%emt 0:01:08]} exd5 {[%emt 0:06:04]} 18. Nc6 {[%emt 0:09:34]} Qd6 {[%emt 0:01:35]} 19. Bd4+ {[%emt 0:07:05]} Qe6 {[%emt 0:01:07]} 20. Rae1 {[%emt 0:04:30]} Bxc6 {[%emt 0:05:06]} 21. Qxe6+ {[%emt 0:02:36]} fxe6 {[%emt 0:00:02]} 22. Rxe6+ {[%emt 0:00:07]} Kf7 {[%emt 0:00:20]} 23. Rxc6 {[%emt 0:00:03]} Rd8 {[%emt 0:03:14]} 24. Nxd5 {[%emt 0:03:00]} Nb8 {[%emt 0:06:30]} 25. Rc7+ {[%emt 0:01:00]} Ke6 {[%emt 0:00:20]} 26. Nf4+ {[%emt 0:00:30]} Kd6 {[%emt 0:00:01]} 27. Bb6 {[%emt 0:03:48]} Ke5 {[%emt 0:00:40]} 28. Rf7 {[%emt 0:00:23]} Bb4 {[%emt 0:01:05]} 29. c3 {[%emt 0:00:19]} 1-0

[Event "1st Bangalore GM-Open-A 2024"]
[Site "Bangalore"]
[Date "2024.01.21"]
[Round "5.16"]
[White "Nithin Babu"]
[Black "Vishnu Prasanna. V"]
[Result "1-0"]
[ECO "B31"]
[WhiteElo "2177"]
[BlackElo "2413"]
[Annotator "RC"]
[PlyCount "47"]
[EventDate "2024.01.20"]
[EventType "swiss"]
[EventCountry "IND"]
[SourceTitle "playchess.com"]
[Source "ChessBase"]
[SourceQuality "1"]
[TimeControl "5400+30"]

1. e4 {[%emt 0:05:22]} c5 {[%emt 0:00:10]} 2. Nf3 {[%emt 0:00:14]} Nc6 {[%emt 0:00:05]} 3. Bb5 {[%emt 0:00:05]} g6 {[%emt 0:00:46]} 4. Bxc6 {[%emt 0:00:05]} dxc6 {[%emt 0:00:04]} 5. d3 {[%emt 0:00:19]} Bg7 {[%emt 0:00:08]} 6. h3 {[%emt 0:00:14]} b6 {[%emt 0:02:19]} 7. O-O {[%emt 0:02:26]} Nf6 {[%emt 0:01:22]} 8. a4 {[%emt 0:07:08]} Nd7 {[%emt 0:07:23]} 9. Nbd2 {[%emt 0:02:58]} O-O {[%emt 0:01:53]} 10. Nc4 {[%emt 0:03:14]} Qc7 {[%emt 0:02:30]} 11. Nh2 {[%emt 0:15:28]} Ba6 {[%emt 0:15:57]} 12. f4 {[%emt 0:03:34]} Bxc4 {[%emt 0:04:08]} 13. dxc4 {[%emt 0:00:02]} Qd6 {[%emt 0:00:05]} 14. Nf3 {[%emt 0:20:40]} Rad8 {[%emt 0:08:26]} 15. Qe2 {[%emt 0:01:09]} e5 {[%emt 0:02:01]} 16. f5 {[%emt 0:03:58]} gxf5 {[%emt 0:03:28]} 17. Nh4 {[%emt 0:10:37]} f4 {[%emt 0:06:08]} 18. Nf5 {[%emt 0:01:32]} Qf6 {[%emt 0:00:05]} 19. Bd2 {[%emt 0:07:00]} Rfe8 {[%emt 0:26:26]} 20. Bc3 {[%emt 0:01:56]} Qg5 {[%emt 0:01:57]} 21. h4 {[%emt 0:00:50]} Qg6 {[%emt 0:00:06]} 22. Rad1 {[%emt 0:04:43]} Bf8 {[%emt 0:01:21]} 23. h5 {[%emt 0:01:12]} Qg5 {[%emt 0:01:07]} 24. Be1 {[%emt 0:00:32]} 1-0